bitfinex-derivatives/quotes_ETHF0:USTF0_20210702
["timestamp","ask_amount","ask_price","bid_price","bid_amount"]
[1625266240344,2.20527,2137.4,2137.0,20.463423]
[1625266240746,15.0125,2138.3,2137.0,20.463423]
[1625266241400,15.0125,2138.3,2137.0,3.5353]
[1625266241703,2.20527,2137.6,2137.3,2.20527]
[1625266242255,2.20527,2137.6,2137.3,1.09512099]
[1625266242404,2.20527,2137.6,2137.0,1.0]
[1625266243758,2.20527,2137.1,2137.0,1.0]
[1625266244510,2.20527,2137.1,2137.0,18.121125]
[1625266245013,2.20527,2137.1,2137.0,1.0]
[1625266245819,4.41054,2137.1,2137.0,1.0]
[1625266247771,4.41054,2137.1,2137.0,3.20527]
[1625266249125,4.41054,2137.1,2137.0,5.59167]
[1625266250547,4.41054,2137.1,2136.8,1.0]
[1625266251249,4.41054,2137.1,2136.6,11.0]
[1625266251850,2.20527,2136.7,2136.6,11.0]
[1625266251950,2.20527,2136.7,2136.6,12.0]
[1625266252050,19.7715,2138.3,2136.6,11.0]
[1625266252602,1.38807178,2138.2,2136.6,11.0]
[1625266253754,4.41054,2136.7,2136.6,11.0]
[1625266255306,4.41054,2136.7,2136.6,12.0]
[1625266258962,4.41054,2136.7,2136.6,11.0]
[1625266259412,4.41054,2136.7,2136.6,12.0]
[1625266260017,4.41054,2136.7,2136.6,11.0]
[1625266264073,4.41054,2136.7,2136.6,0.0001]
[1625266264977,4.41054,2136.7,2136.0,2.20527]
[1625266265778,4.41054,2136.7,2134.9,9.00837922]
[1625266265879,4.41054,2136.2,2135.5,2.20527]
[1625266266028,4.41054,2136.2,2135.6,1.0]
[1625266267534,4.41054,2136.2,2135.5,2.20527]
[1625266267535,7.90994,2136.2,2135.5,2.20527]
[1625266267732,7.90994,2136.2,2135.3,2.20527]
[1625266267833,4.41054,2135.4,2135.3,2.20527]
[1625266268636,4.41054,2135.4,2135.3,3.20527]
[1625266268883,4.41054,2135.4,2135.3,20.088871]
[1625266269084,2.20527,2135.4,2135.3,20.088871]
[1625266269435,2.20527,2135.4,2135.3,28.088871]
[1625266269843,2.20527,2135.8,2135.3,28.088871]
[1625266269947,2.20527,2135.8,2135.3,31.895771]
[1625266270048,2.20527,2135.8,2135.3,23.895771]
[1625266270700,2.20527,2135.8,2135.3,7.01217]
[1625266271103,2.20527,2135.8,2135.3,3.20527]
[1625266271201,2.20527,2135.8,2135.3,2.20527]
[1625266271854,2.20527,2135.4,2135.3,2.20527]
[1625266273761,2.20527,2135.4,2134.9,51.38727922]
[1625266273910,2.20527,2135.0,2134.9,51.38727922]
[1625266274410,2.20527,2135.0,2134.9,69.50790922]
[1625266274660,2.20527,2135.0,2134.9,52.38727922]
[1625266274913,2.20527,2135.0,2134.9,18.89373022]
[1625266275212,2.20527,2135.0,2134.9,2.00837922]
[1625266275563,5.54477,2135.0,2134.9,1.00837922]
[1625266276921,5.54477,2135.0,2134.9,2.00837922]
[1625266277869,5.54477,2135.0,2134.9,1.00837922]
[1625266279077,5.54477,2135.0,2134.9,2.00837922]
[1625266279225,5.54477,2135.0,2134.9,1.00837922]
[1625266280729,5.54477,2135.0,2134.9,2.00837922]
[1625266280880,2.20527,2135.0,2134.9,5.27057922]
[1625266281329,2.20527,2135.0,2134.9,22.15905022]
[1625266281680,2.20527,2135.0,2134.9,80.80485022]
[1625266283184,2.20527,2135.4,2134.9,88.80485022]
[1625266283734,2.20527,2135.4,2134.9,80.80485022]
[1625266283936,2.20527,2135.4,2135.2,2.20527]
[1625266284039,2.20527,2135.4,2135.3,1.0]
[1625266284240,2.20527,2135.4,2135.3,17.928796]
[1625266286846,2.20527,2135.4,2135.3,1.0]
[1625266287048,3.59387073,2135.4,2135.3,1.0]
[1625266287299,3.59387073,2135.4,2134.9,1.00837922]
[1625266287850,1.38869684,2135.3,2134.9,1.00837922]
[1625266287962,2.20527,2135.0,2134.9,1.00837922]
[1625266288498,3.59404245,2135.0,2134.9,1.00837922]
[1625266288799,3.59404245,2135.0,2134.9,2.00837922]
[1625266289300,3.59404245,2135.0,2134.9,1.00837922]
[1625266289900,1.38877245,2135.0,2134.9,9.00837922]
[1625266290001,1.38877245,2135.0,2134.9,13.41891922]
[1625266290199,1.38877245,2135.0,2134.9,22.46907122]
[1625266290402,6.94277456,2135.3,2134.9,22.46907122]
[1625266290503,6.94277456,2135.3,2134.9,26.85987122]
[1625266290656,6.94277456,2135.3,2135.0,8.0]
[1625266290754,6.94277456,2135.3,2135.1,1.0]
[1625266290951,6.94257508,2135.5,2135.1,17.923424]
[1625266291357,6.94257508,2135.5,2135.1,25.923424]
[1625266292005,6.94257508,2135.5,2135.4,4.41054]
[1625266292153,6.94257508,2135.5,2135.4,8.34374]
[1625266292358,6.94257508,2135.5,2135.4,33.242719]
[1625266292569,6.57357508,2135.5,2135.4,33.242719]
[1625266293170,1.38851502,2135.5,2135.4,33.242719]
[1625266293571,1.38832726,2135.8,2135.4,33.242719]
[1625266294070,1.38832726,2135.8,2135.7,2.20527]
[1625266294219,1.38832726,2135.8,2135.7,3.20527]
[1625266294321,1.38832726,2135.8,2135.7,20.330228]
[1625266294972,1.38832726,2135.8,2135.7,3.20527]
[1625266297277,1.38832726,2135.8,2135.7,20.127619]
[1625266297424,1.38832726,2135.8,2135.7,19.127619]
[1625266297525,1.38832726,2135.8,2135.7,2.20527]
[1625266297726,1.38832726,2135.8,2135.4,3.20527]
[1625266298076,2.20527,2135.5,2135.4,2.20527]
[1625266298378,3.59358108,2135.5,2135.4,2.20527]
[1625266298575,3.59358108,2135.5,2135.4,3.20527]
[1625266298676,3.59358108,2135.5,2135.4,20.117324]
[1625266298875,1.38831108,2135.5,2135.4,20.117324]
[1625266299126,2.76593347,2135.8,2135.4,28.117324]
[1625266299225,2.76593347,2135.8,2135.4,22.972824]
[1625266299628,1.38828673,2135.8,2135.4,22.972824]
[1625266299730,1.38828673,2135.8,2135.4,30.972824]
[1625266299978,1.37852902,2136.2,2135.4,30.972824]
[1625266300078,3.58379902,2136.2,2135.7,2.20527]
[1625266300178,3.58379902,2136.2,2135.8,1.0]
[1625266300329,3.58379902,2136.2,2135.8,18.003899]
[1625266300578,1.37934329,2136.0,2135.8,18.003899]
[1625266301381,1.37944421,2135.9,2135.8,18.003899]
[1625266301482,1.37944421,2135.9,2135.8,1.0]
[1625266301783,4.14714974,2136.1,2135.8,1.0]
[1625266301981,4.14714974,2136.1,2135.7,2.20527]
[1625266302132,2.20527,2135.8,2135.7,2.20527]
[1625266302532,3.59358704,2135.8,2135.7,2.20527]
[1625266302832,3.59358704,2135.8,2135.7,3.20527]
[1625266303234,3.59358704,2135.8,2135.7,2.20527]
[1625266303334,3.59358704,2135.8,2135.4,2.20527]
[1625266303637,6.35369424,2135.8,2135.4,2.20527]
[1625266303740,6.35369424,2135.8,2135.2,1.0]
[1625266303990,1.38845687,2135.7,2135.2,1.0]
[1625266304089,4.41054,2135.3,2135.2,1.0]
[1625266304337,5.79900079,2135.3,2135.2,1.0]
[1625266305588,5.79900079,2135.3,2135.2,17.993336]
[1625266307741,11.35272815,2135.3,2135.2,17.993336]
[1625266308844,16.90643635,2135.3,2135.2,17.993336]
[1625266309197,11.35272815,2135.3,2135.2,17.993336]
[1625266309296,11.35272815,2135.3,2135.2,20.281436]
[1625266309597,16.90651669,2135.3,2135.2,20.281436]
[1625266311265,16.90651669,2135.3,2135.2,17.993336]
[1625266312210,19.66865069,2135.3,2135.2,1.0]
[1625266312359,19.66865069,2135.3,2134.9,1.00837922]
[1625266312561,12.49842537,2135.2,2134.9,1.00837922]
[1625266313059,1.38108904,2135.0,2134.9,1.00837922]
[1625266313363,12.49842537,2135.2,2134.9,1.00837922]
[1625266313364,15.26065395,2135.2,2134.9,1.00837922]
[1625266313715,2.7622779,2135.1,2134.9,1.00837922]
[1625266314083,2.20527,2135.0,2134.9,1.00837922]
[1625266314486,9.14934339,2135.0,2134.9,1.00837922]
[1625266315236,9.14934339,2135.0,2134.9,7.922e-05]
[1625266315237,11.91147398,2135.0,2134.9,7.922e-05]
[1625266317083,9.14934339,2135.0,2134.9,7.922e-05]
[1625266319390,9.14934339,2135.0,2134.9,16.88143322]
[1625266319538,9.14934339,2135.0,2134.9,19.51103322]
[1625266322447,10.52960434,2135.0,2134.9,19.51103322]
[1625266323198,10.52960434,2135.0,2134.9,20.51103322]
[1625266323552,9.14934339,2135.0,2134.9,20.51103322]
[1625266324159,9.14934339,2135.0,2134.9,24.92157322]
[1625266324259,3.59408468,2135.0,2134.9,24.92157322]
[1625266324474,3.59408468,2135.0,2134.9,23.92157322]
[1625266324674,9.14810006,2135.0,2134.9,23.92157322]
[1625266325425,9.14810006,2135.0,2134.9,24.92157322]
[1625266327886,9.14810006,2135.0,2134.9,32.92157322]
[1625266328187,3.59408468,2135.0,2134.9,32.92157322]
[1625266328386,3.59408468,2135.0,2134.9,24.92157322]
[1625266328888,3.59408468,2135.0,2134.9,23.92157322]
[1625266328989,9.14828395,2135.0,2134.9,7.04021922]
[1625266329092,9.14828395,2135.0,2134.9,4.41061922]
[1625266329641,9.14828395,2135.0,2134.9,8.05261922]
[1625266330090,9.14828395,2135.0,2134.9,24.95769122]
[1625266331793,9.14828395,2135.0,2134.9,8.05261922]
[1625266331943,9.14828395,2135.0,2134.9,7.922e-05]
[1625266333854,11.90984268,2135.0,2134.9,7.922e-05]
[1625266334406,13.29052204,2135.0,2134.9,7.922e-05]
[1625266334655,10.52896331,2135.0,2134.9,7.922e-05]
[1625266334907,16.08459403,2135.0,2134.9,7.922e-05]
[1625266335107,16.63690314,2135.0,2134.9,7.922e-05]
[1625266335507,14.70391467,2135.0,2134.9,7.922e-05]
[1625266335658,14.70391467,2135.0,2134.9,3.21487922]
[1625266335757,9.14828395,2135.0,2134.9,66.17693222]
[1625266336511,10.52914603,2135.0,2134.9,66.17693222]
[1625266337318,10.52914603,2135.0,2134.9,20.18113222]
[1625266338219,10.52914603,2135.0,2134.9,62.51293222]
[1625266338470,10.52914603,2135.0,2134.9,45.54667922]
[1625266338570,10.52914603,2135.0,2134.9,3.21487922]
[1625266339077,9.14828395,2135.0,2134.9,3.21487922]
[1625266340187,11.91183313,2135.0,2134.9,3.21487922]
[1625266340539,11.91183313,2135.0,2134.3,4.1865]
[1625266340640,11.91183313,2135.0,2134.3,1.0]
[1625266340791,12.84053313,2135.0,2133.3,1.29827986]
[1625266340888,12.84053313,2135.0,2133.6,1.0]
[1625266340989,1.38187386,2134.5,2133.6,1.0]
[1625266341091,2.33067386,2134.5,2133.6,1.0]
[1625266341290,8.32654994,2134.4,2133.6,1.0]
[1625266341390,8.32654994,2134.4,2133.7,17.150967]
[1625266341741,1.3823189,2134.4,2133.7,17.150967]
[1625266341944,1.3823189,2134.4,2133.8,1.0]
[1625266342047,1.3823189,2134.4,2133.8,4.3591]
[1625266342245,1.3823189,2134.4,2133.9,19.264851]
[1625266342345,2.20527,2134.1,2133.9,20.264851]
[1625266342446,2.20527,2134.1,2133.9,19.264851]
[1625266342551,2.20527,2134.1,2134.0,42.8624]
[1625266342851,2.20527,2134.1,2134.0,59.753852]
[1625266343103,2.20527,2134.1,2134.0,16.891452]
[1625266343200,9.14955097,2134.1,2134.0,16.891452]
[1625266343555,9.14955097,2134.1,2133.9,16.86907]
[1625266343760,9.14955097,2134.1,2134.0,16.976487]
[1625266343961,9.14955097,2134.1,2134.0,17.976487]
[1625266344067,2.20527,2134.1,2134.0,1.0]
[1625266344320,2.20527,2134.1,2134.0,20.093348]
[1625266344321,4.41054,2134.1,2134.0,20.093348]
[1625266344419,5.79923118,2134.1,2134.0,20.093348]
[1625266347949,1.38218365,2134.7,2134.0,20.093348]
[1625266348099,1.38218365,2134.7,2134.0,33.093348]
[1625266348201,1.38236596,2135.0,2134.0,33.093348]
[1625266348301,1.38236596,2135.0,2134.9,4.41054]
[1625266348449,1.38236596,2135.0,2134.9,8.79334]
[1625266348550,7.75844826,2135.1,2134.9,8.79334]
[1625266348650,7.75844826,2135.1,2134.9,65.598816]
[1625266349001,5.55311188,2135.0,2134.9,65.598816]
[1625266349504,5.55311188,2135.0,2134.9,73.598816]
[1625266349654,2.20527,2135.1,2134.9,73.598816]
[1625266350005,2.20527,2135.1,2134.9,65.598816]
[1625266350160,5.55283118,2135.0,2134.9,65.598816]
[1625266351061,5.55283118,2135.0,2134.9,25.691116]
[1625266351160,5.55283118,2135.0,2134.9,21.280576]
[1625266351264,5.55283118,2135.0,2134.9,1.0]
[1625266351361,5.55283118,2135.0,2133.9,1.2940884]
[1625266351463,5.55283118,2135.0,2133.9,1.0]
[1625266351914,1.3827772,2134.7,2133.9,1.0]
[1625266352014,1.3827772,2134.7,2134.0,16.901101]
[1625266352368,2.20527,2134.4,2134.2,2.20527]
[1625266352664,2.20527,2134.4,2134.3,17.069662]
[1625266353269,7.75991593,2134.4,2134.3,17.069662]
[1625266354475,9.96518593,2134.4,2134.3,17.069662]
[1625266355994,9.96518593,2134.4,2134.3,20.719462]
[1625266356095,9.96518593,2134.4,2134.3,21.719462]
[1625266356198,9.96518593,2134.4,2134.3,4.6498]
[1625266356445,9.96518593,2134.4,2134.3,6.85507]
[1625266356547,9.96518593,2134.4,2134.3,24.007091]
[1625266356648,4.41054,2134.4,2134.3,24.007091]
[1625266356949,1.38276621,2134.9,2134.3,24.007091]
[1625266357700,1.38281864,2135.0,2134.3,24.007091]
[1625266358048,1.38281802,2134.9,2134.3,24.007091]
[1625266358499,3.58808802,2134.9,2134.6,2.20527]
[1625266358798,3.58808802,2134.9,2134.7,17.05561]
[1625266358899,5.55398932,2134.8,2134.7,17.05561]
[1625266359400,5.55398932,2134.8,2134.0,57.8295]
[1625266359951,1.38299085,2134.7,2134.0,57.8295]
[1625266360051,1.38299085,2134.7,2134.1,17.094489]
[1625266360152,1.38299085,2134.7,2134.2,1.0]
[1625266360305,6.93694462,2134.8,2134.2,1.0]
[1625266360503,6.93694462,2134.8,2134.3,16.909818]
[1625266360653,6.93694462,2134.8,2134.3,17.909818]
[1625266361056,6.93694462,2134.8,2134.3,16.909818]
[1625266361155,6.93694462,2134.8,2134.3,17.909818]
[1625266361256,6.93694462,2134.8,2134.3,16.909818]
[1625266361459,1.38295792,2134.7,2134.3,16.909818]
[1625266362462,2.20527,2134.5,2134.3,16.909818]
[1625266362914,5.55460034,2134.4,2134.3,16.909818]
[1625266363815,5.55460034,2134.4,2134.3,17.909818]
[1625266364518,2.20527,2134.5,2134.3,17.909818]
[1625266365420,2.20527,2134.5,2134.3,21.071118]
[1625266365817,3.58816826,2134.9,2134.3,21.071118]
[1625266365918,2.20527,2134.9,2134.3,21.071118]
[1625266366019,2.20527,2134.9,2134.3,29.071118]
[1625266366168,2.20527,2134.9,2134.3,34.071118]
[1625266366532,2.20527,2134.9,2134.8,56.12264]
[1625266366682,2.20527,2134.9,2134.8,59.92924]
[1625266366792,2.20527,2134.9,2134.8,76.907071]
[1625266367449,5.55301974,2134.9,2134.8,76.907071]
[1625266367850,2.20527,2135.1,2134.8,76.907071]
[1625266367851,5.5530277,2135.0,2134.8,76.907071]
[1625266368153,6.94131637,2135.0,2134.8,76.907071]
[1625266370712,6.94131637,2135.0,2134.8,25.194971]
[1625266370912,6.94131637,2135.0,2134.8,24.194971]
[1625266371061,6.94131637,2135.0,2134.8,7.21714]
[1625266371161,6.94131637,2135.0,2134.8,4.41054]
[1625266371512,6.94131637,2135.0,2134.3,1.0]
[1625266371718,6.94131637,2135.0,2134.4,1.0]
[1625266371915,6.94131637,2135.0,2133.8,1.2919496]
[1625266372015,1.38277339,2134.8,2133.8,2.2919496]
[1625266372113,1.38277339,2134.8,2134.5,17.022216]
[1625266372463,1.382913,2134.7,2133.9,18.133264]
[1625266372614,2.20527,2134.6,2134.5,2.20527]
[1625266372816,9.14826985,2134.6,2134.5,2.20527]
[1625266374665,9.14826985,2134.6,2134.5,19.185367]
[1625266375416,9.14826985,2134.6,2134.5,20.185367]
[1625266375917,9.14826985,2134.6,2134.5,19.185367]
[1625266376169,9.14826985,2134.6,2134.5,20.185367]
[1625266376521,3.59386997,2134.6,2134.5,20.185367]
[1625266377074,3.59386997,2134.6,2134.5,19.185367]
[1625266377271,9.1479584,2134.6,2134.5,19.185367]
[1625266377370,9.1479584,2134.6,2134.5,20.185367]
[1625266377871,9.1479584,2134.6,2134.5,17.980097]
[1625266377972,9.1479584,2134.6,2134.5,16.980097]
[1625266378523,9.1479584,2134.6,2134.5,67.917497]
[1625266379186,9.1479584,2134.6,2134.5,68.917497]
[1625266379486,6.9426884,2134.6,2134.5,68.917497]
[1625266379938,6.94202557,2134.8,2134.5,68.917497]
[1625266380240,6.9420593,2134.9,2134.5,68.917497]
[1625266380542,6.9420593,2134.9,2134.8,4.41054]
[1625266380647,6.9420593,2134.9,2134.8,5.41054]
[1625266380843,6.9420593,2134.9,2134.8,22.389506]
[1625266388266,6.9420593,2134.9,2134.8,30.389506]
[1625266388370,1.38841186,2134.9,2134.8,35.389506]
[1625266388617,1.38841186,2134.9,2134.8,30.389506]
[1625266388618,0.18011186,2134.9,2134.8,30.389506]
[1625266388766,6.94060749,2135.3,2134.8,22.389506]
[1625266389069,6.94060749,2135.3,2134.8,30.389506]
[1625266389169,2.76594165,2135.5,2134.8,33.206706]
[1625266389321,1.38276257,2135.5,2134.8,33.206706]
[1625266389671,5.55250849,2135.5,2134.8,33.206706]
[1625266390071,8.31858047,2135.6,2134.8,33.206706]
[1625266390372,6.93536466,2135.5,2134.8,33.206706]
[1625266390623,6.93536466,2135.5,2135.4,4.41054]
[1625266390724,6.93536466,2135.5,2135.4,5.41054]
[1625266390927,6.93536466,2135.5,2135.4,22.548547]
[1625266391427,6.93536466,2135.5,2135.4,26.221547]
[1625266391530,5.55247667,2135.5,2135.4,26.221547]
[1625266392588,1.38276273,2135.6,2135.4,26.221547]
[1625266393240,0.89676273,2135.6,2135.4,34.221547]
[1625266393340,5.55201595,2135.6,2135.4,34.221547]
[1625266393442,5.55201595,2135.6,2135.4,26.221547]
[1625266394445,5.55168926,2135.9,2135.4,39.221547]
[1625266394646,5.55168926,2135.9,2135.8,2.20527]
[1625266394747,5.55168926,2135.9,2135.8,11.20527]
[1625266394849,5.55120028,2136.0,2135.8,11.20527]
[1625266394952,5.55120028,2136.0,2135.8,28.313605]
[1625266395098,5.55120028,2136.0,2135.9,57.2682]
[1625266395197,1.38247308,2136.2,2135.9,60.832]
[1625266395448,6.93363658,2136.3,2135.9,77.895141]
[1625266396001,1.38244309,2136.3,2135.9,85.895141]
[1625266396248,1.38244309,2136.3,2135.9,77.895141]
[1625266396502,1.38175133,2136.4,2135.9,85.895141]
[1625266396599,1.38175133,2136.4,2136.3,4.41054]
[1625266396705,1.38175133,2136.4,2136.3,13.41054]
[1625266396902,4.13972187,2136.5,2136.3,13.41054]
[1625266396903,2.20527,2136.5,2136.3,30.540565]
[1625266397203,2.20527,2136.5,2136.4,1.0]
[1625266397303,2.20527,2136.5,2136.3,21.540565]
[1625266397555,3.58694117,2136.5,2136.3,21.540565]
[1625266397807,1.3817234,2136.4,2136.3,21.540565]
[1625266398208,6.93261794,2136.4,2136.3,21.540565]
[1625266398460,5.55089454,2136.4,2136.3,21.540565]
[1625266398562,3.58643016,2136.5,2136.3,21.540565]
[1625266399007,9.13732628,2136.5,2136.3,21.540565]
[1625266399459,9.13732628,2136.5,2136.4,1.0]
[1625266399709,7.75616612,2136.5,2136.4,1.0]
[1625266399814,2.20527,2136.5,2136.4,18.122544]
[1625266400764,6.93100459,2136.7,2136.4,18.122544]
[1625266401217,1.38039193,2136.7,2136.4,18.122544]
[1625266401418,6.93082384,2136.8,2136.4,18.122544]
[1625266401518,6.93082384,2136.8,2136.4,21.113344]
[1625266401618,1.38032886,2136.8,2136.4,21.113344]
[1625266402069,1.38032886,2136.8,2136.4,29.113344]
[1625266402218,6.92994868,2136.9,2136.4,29.113344]
[1625266402418,1.37956386,2136.9,2136.4,29.113344]
[1625266402569,1.37956386,2136.9,2136.4,21.113344]
[1625266402718,1.37956386,2136.9,2136.8,2.20527]
[1625266402969,1.93146065,2136.9,2136.8,2.20527]
[1625266403170,7.48223057,2136.9,2136.8,2.20527]
[1625266403369,8.30989896,2136.9,2136.8,2.20527]
[1625266404018,8.30989896,2136.9,2136.3,2.20527]
[1625266404120,11.40679896,2136.9,2136.1,1.0]
[1625266404571,1.37912431,2136.7,2136.1,1.0]
[1625266404670,2.20527,2136.2,2136.0,2.20527]
[1625266405372,2.20527,2136.2,2136.1,16.981811]
[1625266405726,2.20527,2136.2,2136.1,17.981811]
[1625266406073,1.37913178,2136.6,2136.1,17.981811]
[1625266406174,1.37873641,2136.7,2136.1,17.981811]
[1625266406675,3.58400641,2136.7,2136.1,17.981811]
[1625266407678,2.20527,2136.7,2136.1,17.981811]
[1625266408477,1.37866262,2136.9,2136.1,17.981811]
[1625266408678,1.37866262,2136.9,2136.7,2.20527]
[1625266409078,1.38761619,2136.8,2136.7,2.20527]
[1625266409630,1.38761619,2136.8,2136.7,3.20527]
[1625266409883,6.93795532,2136.8,2136.7,3.20527]
[1625266409979,6.93795532,2136.8,2136.7,20.248075]
[1625266410231,6.93782449,2136.9,2136.7,20.248075]
[1625266410331,6.93782449,2136.9,2136.7,19.248075]
[1625266410630,6.93762236,2137.0,2136.7,19.248075]
[1625266410731,2.20527,2136.9,2136.8,2.20527]
[1625266411033,2.20527,2136.9,2136.8,19.243925]
[1625266411383,9.14292921,2136.9,2136.8,19.243925]
[1625266414914,9.14292921,2136.9,2136.8,17.038655]
[1625266417668,3.59280184,2136.9,2136.8,17.038655]
[1625266418068,9.1431571,2136.9,2136.8,17.038655]
[1625266418419,3.59280184,2136.9,2136.8,17.038655]
[1625266418569,3.59280184,2136.9,2136.8,57.324255]
[1625266422531,3.59280184,2136.9,2136.8,58.324255]
[1625266422632,1.38753184,2136.9,2136.8,61.487555]
[1625266422937,17.67967,2137.2,2136.8,61.487555]
[1625266423286,1.38735256,2137.1,2136.8,61.487555]
[1625266423384,1.38735256,2137.1,2136.8,60.487555]
[1625266423536,1.38735256,2137.1,2136.8,61.487555]
[1625266423734,17.67967,2137.2,2136.8,61.487555]
[1625266424034,1.38733318,2137.1,2136.8,61.487555]
[1625266424790,1.38733318,2137.1,2137.0,2.20527]
[1625266425093,1.38733318,2137.1,2137.0,19.122034]
[1625266425255,1.38733318,2137.1,2137.0,16.916764]
[1625266425357,1.38733318,2137.1,2135.5,5.0]
[1625266425507,9.36102602,2137.1,2135.9,8.0]
[1625266425606,9.36102602,2137.1,2136.0,8.0]
[1625266425907,1.38749174,2137.0,2136.0,8.0]
[1625266426005,1.38749174,2137.0,2136.1,16.914745]
[1625266426107,1.38749174,2137.0,2136.1,17.914745]
[1625266426505,1.38749174,2137.0,2136.1,25.914745]
[1625266426807,2.20527,2136.6,2136.5,2.20527]
[1625266426910,1.20527,2136.6,2136.5,2.20527]
[1625266427156,1.20527,2136.6,2136.5,19.2913]
[1625266427257,1.20527,2136.6,2136.5,27.2913]
[1625266427357,1.20527,2136.6,2136.5,19.2913]
[1625266427866,1.0,2136.9,2136.5,19.2913]
[1625266427966,15.4744,2137.2,2136.8,56.6052]
[1625266428519,1.38742539,2137.1,2136.8,56.6052]
[1625266428869,3.59269539,2137.1,2137.0,4.41054]
[1625266428970,3.59269539,2137.1,2137.0,7.30634]
[1625266429173,3.59269539,2137.1,2137.0,24.310567]
[1625266429475,1.38742539,2137.1,2137.0,24.310567]
[1625266431689,1.38742539,2137.1,2137.0,7.30634]
[1625266431779,1.38742539,2137.1,2137.0,4.41054]
[1625266432884,3.59269539,2137.1,2137.0,4.41054]
[1625266432982,9.14271564,2137.1,2137.0,4.41054]
[1625266434638,9.14271564,2137.1,2135.8,57.8113]
[1625266434750,1.0,2137.0,2135.8,57.8113]
[1625266434851,1.0,2137.0,2136.6,2.20527]
[1625266434948,9.14271564,2137.1,2136.6,2.20527]
[1625266435351,6.93798542,2137.0,2136.6,2.20527]
[1625266435699,6.93798542,2137.0,2136.7,57.9435]
[1625266436102,1.38759708,2137.0,2136.7,61.0096]
[1625266436350,1.38759708,2137.0,2136.8,16.907081]
[1625266436859,1.38741691,2137.1,2136.9,2.20527]
[1625266438915,2.20527,2137.0,2136.9,2.20527]
[1625266439116,3.59269212,2137.0,2136.9,2.20527]
[1625266439616,3.59269212,2137.0,2136.9,19.189739]
[1625266439916,3.59269212,2137.0,2136.9,2.20527]
[1625266440320,3.59269212,2137.0,2136.9,19.068127]
[1625266441720,2.20527,2137.0,2136.9,19.068127]
[1625266442423,15.4744,2137.2,2136.9,19.068127]
[1625266442874,15.4744,2137.2,2137.1,2.20527]
[1625266443177,15.4744,2137.2,2137.1,19.231858]
[1625266445435,1.0,2137.6,2137.1,27.231858]
[1625266445534,3.20527,2137.7,2137.1,27.231858]
[1625266445633,2.20527,2137.7,2137.1,27.231858]
[1625266445884,1.38707836,2137.6,2137.1,19.231858]
[1625266446934,1.38707836,2137.6,2137.4,2.20527]
[1625266447135,1.38707836,2137.6,2137.2,2.395]
[1625266447387,1.38707836,2137.6,2137.5,50.2264]
[1625266448037,1.38707836,2137.6,2137.2,2.395]
[1625266448139,1.38707836,2137.6,2137.1,2.20527]
[1625266448897,2.20527,2137.3,2137.1,4.41054]
[1625266450455,1.0,2137.6,2137.1,4.41054]
[1625266450606,2.20527,2137.7,2137.1,4.41054]
[1625266450707,1.38701418,2137.5,2137.1,4.41054]
[1625266451007,1.38701866,2137.6,2137.1,4.41054]
[1625266451505,1.38701866,2137.6,2137.1,12.41054]
[1625266451606,1.38701866,2137.6,2137.1,4.41054]
[1625266451707,1.38701866,2137.6,2137.2,17.005254]
[1625266451807,1.38701866,2137.6,2137.2,19.451954]
[1625266452909,1.38701866,2137.6,2137.5,2.20527]
[1625266453009,4.41054,2137.7,2137.5,2.20527]
[1625266453110,4.41054,2137.7,2137.6,55.1702]
[1625266453711,5.79750863,2137.7,2137.5,2.20527]
[1625266454064,1.3869506,2137.6,2137.5,2.20527]
[1625266454413,1.3869506,2137.6,2137.5,19.253275]
[1625266454515,2.20527,2137.7,2137.5,19.253275]
[1625266454616,2.20527,2137.7,2137.6,47.6947]
[1625266454714,1.37472785,2138.3,2137.6,47.6947]
[1625266454814,1.37472785,2138.3,2137.6,55.6947]
[1625266454918,1.37488967,2138.4,2138.2,4.41054]
[1625266455013,1.37488967,2138.4,2138.2,7.63704]
[1625266455263,6.93402309,2138.3,2138.2,7.63704]
[1625266455564,6.93402309,2138.3,2138.2,24.531475]
[1625266455917,1.3865378,2138.4,2138.2,24.531475]
[1625266456014,1.3865378,2138.4,2138.2,32.531475]
[1625266456114,2.1898078,2138.5,2138.2,24.531475]
[1625266456217,1.37433964,2138.7,2138.2,24.531475]
[1625266456318,5.77193958,2139.3,2138.2,32.531475]
[1625266456418,1.37424762,2139.1,2138.3,5.0]
[1625266456518,5.01483118,2139.6,2138.5,5.0]
[1625266456617,5.01483118,2139.6,2138.7,1.15]
[1625266456770,4.39759239,2139.8,2138.9,5.0]
[1625266456867,4.39759239,2139.8,2139.0,8.0]
[1625266456972,18.76634461,2141.8,2139.7,4.41054]
[1625266457079,14.6464,2141.8,2139.8,13.0]
[1625266457275,16.49097148,2141.9,2140.1,56.0997]
[1625266457375,4.70269695,2141.5,2140.1,61.0997]
[1625266457492,4.70269695,2141.5,2140.1,69.0997]
[1625266457597,9.61303871,2142.1,2140.1,85.933028]
[1625266457691,7.80403871,2142.1,2140.1,85.933028]
[1625266457843,4.82053871,2142.1,2140.1,87.033028]
[1625266457991,8.87392119,2142.6,2140.1,87.033028]
[1625266458149,1.0134768,2143.4,2140.1,87.033028]
[1625266458243,1.0134768,2143.4,2140.6,1.15]
[1625266458341,1.0134768,2143.4,2140.8,5.0]
[1625266458443,1.0134768,2143.4,2140.9,8.0]
[1625266458546,1.0134768,2143.4,2141.0,5.0]
[1625266458643,1.0134768,2143.4,2141.1,8.0]
[1625266458745,1.0134768,2143.4,2141.2,5.0]
[1625266458847,1.0134768,2143.4,2141.4,5.0]
[1625266459007,1.0134768,2143.4,2143.3,4.41054]
[1625266459096,1.0134768,2143.4,2143.3,7.92354]
[1625266459301,1.0134768,2143.4,2143.3,24.721002]
[1625266459395,14.5568,2144.2,2143.3,24.721002]
[1625266459907,49.8894,2143.6,2143.3,24.721002]
[1625266460007,14.5568,2144.2,2143.3,24.721002]
[1625266460609,14.5568,2144.2,2143.3,32.721002]
[1625266460910,14.5568,2144.2,2143.8,1.15]
[1625266461012,14.5568,2144.2,2144.1,2.20527]
[1625266461309,13.3968,2144.2,2144.1,19.225302]